[Event "WYCC 2018 O18"]
[Site "Halkidiki"]
[Date "2018.10.21"]
[Round "3"]
[White "Risting, Eivind Olav"]
[Black "Olimjonov, Sarvarbek"]
[Result "1-0"]
[ECO "A43"]
[WhiteElo "2299"]
[BlackElo "2074"]
[Annotator "NA"]
[PlyCount "109"]
[EventDate "2018.10.20"]
[EventType "swiss"]
[EventCountry "GRE"]
[SourceTitle "playchess.com"]
[Source "ChessBase"]
[SourceQuality "1"]
[TimeControl "40/5400+30:1800+30"]

1. d4 {[%emt 0:00:00]} Nf6 {[%emt 0:00:00]} 2. Nf3 {[%emt 0:00:00]} c5 {[%emt 0:00:05]} 3. d5 {[%emt 0:00:29]} b5 {[%emt 0:00:32]} 4. c3 {[%emt 0:00:55] A43: Schmid Benoni} (4. c4 bxc4 5. Nc3 d6 6. e4 g6 7. h3 Bg7 8. Bxc4 O-O 9. O-O Nbd7 10. Re1 a5 11. Bf4 Ba6 12. Bxa6 Rxa6 13. e5 dxe5 14. Nxe5 Nxe5 15. Bxe5 Rb6 16. Qd2 Rb4 17. a3 {½-½ (41) Kamsky,G (2666)-Alekseev,E (2620) Sochi 2018}) 4... Bb7 {[%emt 0:04:13]} 5. e4 {[%emt 0:00:37]} Nxe4 {[%emt 0:08:00]} 6. Bxb5 {[%emt 0:00:23]} Nf6 {[%emt 0:01:19]} 7. c4 {[%emt 0:00:25]} g6 {[%emt 0:01:43]} 8. O-O $146 {[%emt 0:01:09]} ({Predecessor:} 8. Nc3 Bg7 9. Be3 Qc7 10. O-O O-O 11. Re1 d6 {1-0 (42) Hillarp Persson,T (2543)-Risting,E (2308) Kragero 2018}) 8... Bg7 {[%emt 0:01:13]} 9. Nc3 {[%emt 0:00:31]} O-O {[%emt 0:00:54]} 10. Re1 {[%emt 0:11:40]} e6 {[%emt 0:20:18]} 11. Bf4 {[%emt 0:11:41]} a6 {[%emt 0:06:11]} 12. Ba4 {[%emt 0:00:41]} Qb6 {[%emt 0:01:27]} 13. Bb3 {[%emt 0:12:11]} exd5 {[%emt 0:08:41]} 14. cxd5 {[%emt 0:01:25]} d6 {[%emt 0:09:22]} 15. Nd2 {[%emt 0:06:44]} Rd8 {[%emt 0:01:19]} 16. Nc4 {[%emt 0:10:42]} Qc7 {[%emt 0:01:12]} 17. Qf3 {[%emt 0:01:32]} Nh5 {[%emt 0:12:34]} 18. Bg5 {[%emt 0:04:39]} Nd7 {[%emt 0:01:21]} 19. Bxd8 {[%emt 0:02:40]} Rxd8 {[%emt 0:00:07]} 20. Rad1 {[%emt 0:03:07]} Ne5 {[%emt 0:03:01]} 21. Nxe5 {[%emt 0:00:49]} Bxe5 {[%emt 0:00:07]} 22. Bc4 {[%emt 0:05:33]} Bc8 {[%emt 0:04:50]} 23. g3 {[%emt 0:05:49]} Ng7 {[%emt 0:00:35]} 24. Qd3 {[%emt 0:08:31]} Bg4 {[%emt 0:01:26]} 25. f3 {[%emt 0:01:21]} Bf5 {[%emt 0:00:53]} 26. Qd2 {[%emt 0:00:58]} Rb8 {[%emt 0:02:11]} 27. b3 {[%emt 0:01:09]} h5 {[%emt 0:02:20]} 28. Kh1 {[%emt 0:01:29]} Bd7 {[%emt 0:01:36]} 29. Ne2 {[%emt 0:02:12]} Nf5 {[%emt 0:00:49]} 30. Bxa6 {[%emt 0:01:02]} Qa7 {[%emt 0:01:53]} 31. Bc4 {[%emt 0:00:39]} Rb4 {[%emt 0:00:34]} 32. Rf1 {[%emt 0:01:19]} Qa3 {[%emt 0:01:53]} 33. Nc1 {[%emt 0:00:42]} Bd4 {[%emt 0:01:44]} 34. Nd3 {[%emt 0:02:21]} Rb8 {[%emt 0:00:04]} 35. Rfe1 {[%emt 0:00:36]} Ra8 {[%emt 0:00:30]} 36. Re2 {[%emt 0:00:13]} Bf6 {[%emt 0:00:10]} 37. Qf4 {[%emt 0:00:34]} g5 {[%emt 0:00:12]} 38. Qc1 {[%emt 0:00:49]} Qa5 {[%emt 0:00:15]} 39. Nf2 {[%emt 0:00:41]} Qd8 {[%emt 0:01:03]} 40. Ne4 {[%emt 0:00:00]} Nd4 {[%emt 0:00:00]} 41. Rxd4 {[%emt 0:05:33]} cxd4 {[%emt 0:08:49]} 42. Nxd6 {[%emt 0:01:35]} g4 {[%emt 0:02:08]} 43. fxg4 {[%emt 0:08:45]} d3 {[%emt 0:10:03]} 44. Bxd3 {[%emt 0:02:38]} Bxg4 {[%emt 0:05:15]} 45. Re8+ {[%emt 0:01:53]} Qxe8 {[%emt 0:00:04]} 46. Nxe8 {[%emt 0:00:18]} Bf3+ {[%emt 0:00:05]} 47. Kg1 {[%emt 0:00:07]} Bd4+ {[%emt 0:00:26]} 48. Kf1 {[%emt 0:00:12]} Rxa2 {[%emt 0:01:15]} 49. Qg5+ {[%emt 0:07:01]} Kf8 {[%emt 0:01:21]} 50. Qh6+ {[%emt 0:00:23]} Kxe8 {[%emt 0:00:39]} 51. Bb5+ {[%emt 0:00:07]} Kd8 {[%emt 0:00:19]} 52. Qd6+ {[%emt 0:00:32]} Kc8 {[%emt 0:00:22]} 53. Ba6+ $18 {[%emt 0:00:50]} (53. Qd7+ $142 Kb8 54. Qd8+ Kb7 55. Bc6+ Ka6 56. Qa8+ Kb6 57. Qxa2) 53... Rxa6 {[%emt 0:00:09]} 54. Qxa6+ {[%emt 0:00:04]} Kd8 {[%emt 0:00:09]} 55. Qd3 {[%emt 0:00:52]} 1-0

[Event "WYCC 2018 O18"]
[Site "Halkidiki"]
[Date "2018.10.21"]
[Round "3"]
[White "Martinez Fernandez, Adrian"]
[Black "Manu David Suthandram R"]
[Result "1-0"]
[ECO "A02"]
[WhiteElo "2277"]
[BlackElo "1970"]
[Annotator "NA"]
[PlyCount "161"]
[EventDate "2018.10.20"]
[EventType "swiss"]
[EventCountry "GRE"]
[SourceTitle "playchess.com"]
[Source "ChessBase"]
[SourceQuality "1"]
[TimeControl "40/5400+30:1800+30"]

1. f4 {[%emt 0:00:00]} c5 {[%emt 0:00:18]} 2. Nf3 {[%emt 0:00:00]} Nc6 {[%emt 0:00:10]} 3. b3 {[%emt 0:00:10]} e6 {[%emt 0:00:07]} 4. Bb2 {[%emt 0:00:09]} Nf6 {[%emt 0:00:06]} 5. e3 {[%emt 0:00:07]} Be7 {[%emt 0:00:03]} 6. Bb5 {[%emt 0:00:44]} O-O {[%emt 0:00:09] A02: Bird's Opening} 7. Bxc6 {[%emt 0:00:47]} (7. O-O Qc7 8. Bxc6 Qxc6 9. d3 b5 10. Nbd2 Bb7 11. e4 d5 12. Ne5 Qc7 13. Qe2 c4 14. bxc4 bxc4 15. dxc4 dxe4 {0-1 (45) Grabuzova,T (2348)-Vescovi,G (2648) playchess.com INT 2004}) 7... bxc6 {[%emt 0:00:09]} 8. O-O {[%emt 0:00:08]} d6 {[%emt 0:02:20]} 9. d3 {[%emt 0:06:33]} Nd5 $146 {[%emt 0:05:22]} ({Predecessor:} 9... Qc7 10. Nbd2 Rb8 11. Qe2 h6 12. c4 Nd7 13. Qf2 Bf6 14. Bxf6 Nxf6 {1-0 (47) Stratmann,D (1470)-Vasic,M (1690) Seefeld 1999}) 10. Qd2 {[%emt 0:00:15]} f5 {[%emt 0:00:21]} 11. Na3 {[%emt 0:02:47]} Bf6 {[%emt 0:00:36]} 12. Bxf6 {[%emt 0:00:56]} Nxf6 {[%emt 0:03:15]} 13. Nc4 {[%emt 0:02:03]} Ba6 {[%emt 0:00:40]} 14. Rfe1 {[%emt 0:04:17]} Re8 {[%emt 0:06:11]} 15. Nb2 {[%emt 0:09:26]} Qc7 {[%emt 0:02:55]} 16. Na4 {[%emt 0:02:15]} Bb5 {[%emt 0:00:56]} 17. Nb2 {[%emt 0:01:52]} Ba6 {[%emt 0:01:42]} 18. Nd1 {[%emt 0:00:44]} Rad8 {[%emt 0:02:32]} 19. Nf2 {[%emt 0:01:36]} Qb6 {[%emt 0:02:59]} 20. Kh1 {[%emt 0:02:00]} d5 {[%emt 0:04:16]} 21. Ne5 {[%emt 0:05:48]} c4 {[%emt 0:02:23]} 22. bxc4 {[%emt 0:02:41]} dxc4 {[%emt 0:00:07]} 23. d4 {[%emt 0:01:54]} c5 {[%emt 0:00:33]} 24. Rab1 {[%emt 0:01:34]} Qc7 {[%emt 0:07:51]} 25. c3 {[%emt 0:01:06]} cxd4 {[%emt 0:08:00]} 26. exd4 {[%emt 0:00:36]} Nd5 {[%emt 0:06:31]} 27. Nd1 {[%emt 0:14:37]} Rd6 {[%emt 0:02:30]} 28. Ne3 {[%emt 0:07:47]} Nf6 {[%emt 0:02:00]} 29. Rb4 {[%emt 0:02:38]} Nd5 {[%emt 0:01:54]} 30. Nxd5 {[%emt 0:00:35]} Rxd5 {[%emt 0:00:28]} 31. Reb1 {[%emt 0:00:51]} Rdd8 {[%emt 0:05:22]} 32. Qc2 {[%emt 0:05:12]} Rd6 {[%emt 0:06:36]} 33. Qa4 {[%emt 0:04:28]} Rc8 {[%emt 0:00:06]} 34. Kg1 {[%emt 0:00:10]} h6 {[%emt 0:00:51]} 35. Qa3 {[%emt 0:00:16]} Kh7 {[%emt 0:00:23]} 36. Ra4 {[%emt 0:08:32]} Bb7 {[%emt 0:00:07]} 37. Rxc4 {[%emt 0:00:47]} Rb6 {[%emt 0:00:08]} 38. Rxb6 {[%emt 0:03:22]} Qxb6 {[%emt 0:00:15]} 39. Rb4 {[%emt 0:01:00]} Qd6 {[%emt 0:06:16]} 40. Qb2 {[%emt 0:00:00]} Ba8 {[%emt 0:00:00]} 41. Rb5 {[%emt 0:10:43]} a6 {[%emt 0:03:16]} 42. Rb6 {[%emt 0:03:10]} Qd5 {[%emt 0:00:07]} 43. c4 {[%emt 0:01:57]} Qd8 {[%emt 0:07:34]} 44. a4 {[%emt 0:01:28]} a5 {[%emt 0:00:31]} 45. h3 {[%emt 0:00:58]} Qe8 {[%emt 0:00:20]} 46. Rb5 {[%emt 0:01:46]} Qh5 {[%emt 0:01:14]} 47. Qd2 {[%emt 0:00:59]} Qh4 {[%emt 0:00:06]} 48. Rxa5 {[%emt 0:02:20]} Qg3 {[%emt 0:00:07]} 49. Rb5 {[%emt 0:00:28]} Rd8 {[%emt 0:00:16]} 50. Rb2 {[%emt 0:03:48]} Qa3 {[%emt 0:01:50]} 51. a5 {[%emt 0:00:06]} Be4 {[%emt 0:00:03]} 52. Kh2 {[%emt 0:01:25]} Qa1 {[%emt 0:00:53]} 53. Ra2 {[%emt 0:07:34]} Rxd4 {[%emt 0:00:32]} 54. Qb2 {[%emt 0:02:45]} Qd1 {[%emt 0:00:45]} 55. a6 {[%emt 0:00:31]} Ba8 {[%emt 0:01:20]} 56. a7 {[%emt 0:02:52]} Rxf4 {[%emt 0:01:50]} 57. Ra1 {[%emt 0:01:44]} Qd6 {[%emt 0:08:34]} 58. Qb8 {[%emt 0:00:02]} Qd4 {[%emt 0:00:36]} 59. Ra2 {[%emt 0:03:28]} Qe4 {[%emt 0:01:00]} 60. Nd7 {[%emt 0:00:34]} Rf1 $1 {[%emt 0:01:48]} 61. Nf8+ {[%emt 0:00:26]} Kg8 $1 {[%emt 0:00:32] [#]} 62. Nd7+ {[%emt 0:00:07]} ({Der einzige Zug:} 62. Ng6+ $1 $18 Kh7 63. Qe8) 62... Kh7 {[%emt 0:00:22]} 63. Nf8+ {[%emt 0:00:16]} Kg8 {[%emt 0:00:05] [#]} 64. Nxe6+ $2 {[%emt 0:00:01]} Kh7 $1 {[%emt 0:00:07]} {Don't take} 65. Nf8+ $6 {[%emt 0:00:04]} Kg8 $16 {[%emt 0:00:07]} 66. Nd7+ {[%emt 0:00:24]} Kh7 {[%emt 0:00:22]} 67. Qe5 {[%emt 0:01:52]} Qxc4 {[%emt 0:01:25]} 68. Nf8+ {[%emt 0:00:33]} Kg8 {[%emt 0:00:07] [#]} 69. Ne6 $1 {[%emt 0:00:08]} Kf7 {[%emt 0:00:18]} 70. Qxg7+ {[%emt 0:00:25]} Ke8 {[%emt 0:00:07]} 71. Nc7+ {[%emt 0:00:42]} Kd8 {[%emt 0:00:08]} 72. Rd2+ {[%emt 0:00:01]} Kc8 {[%emt 0:00:08]} 73. Qd7+ {[%emt 0:00:18]} Kb7 {[%emt 0:00:07]} 74. Rb2+ {[%emt 0:00:57]} Kxa7 {[%emt 0:00:10]} 75. Nxa8+ {[%emt 0:00:21]} Ka6 {[%emt 0:00:04]} 76. Nc7+ {[%emt 0:00:21]} Ka7 {[%emt 0:00:08]} 77. Nd5+ {[%emt 0:00:46]} Ka6 {[%emt 0:00:08]} 78. Qb7+ {[%emt 0:00:16]} (78. Rb6+ $142 Ka5 79. Qa7+ Qa6 80. Qxa6#) 78... Ka5 {[%emt 0:00:04]} 79. Qb6+ {[%emt 0:00:18]} Ka4 {[%emt 0:00:04]} 80. Qa7+ {[%emt 0:00:10]} Qa6 {[%emt 0:00:08]} 81. Qxa6# {[%emt 0:00:02]} 1-0

[Event "WYCC 2018 O18"]
[Site "Halkidiki"]
[Date "2018.10.21"]
[Round "3"]
[White "Alexiadis, Hristos"]
[Black "Brewer, Callum D"]
[Result "1/2-1/2"]
[ECO "A50"]
[WhiteElo "2263"]
[BlackElo "2056"]
[Annotator "NA"]
[PlyCount "81"]
[EventDate "2018.10.20"]
[EventType "swiss"]
[EventCountry "GRE"]
[SourceTitle "playchess.com"]
[Source "ChessBase"]
[SourceQuality "1"]
[TimeControl "40/5400+30:1800+30"]

1. d4 {[%emt 0:00:10]} Nf6 {[%emt 0:00:00]} 2. c4 {[%emt 0:00:13]} b6 {[%emt 0:00:00]} 3. Nc3 {[%emt 0:00:44]} Bb7 {[%emt 0:00:00]} 4. f3 {[%emt 0:03:22]} d5 {[%emt 0:00:00]} 5. cxd5 {[%emt 0:00:09]} Nxd5 {[%emt 0:00:00]} 6. e4 {[%emt 0:01:07]} Nxc3 {[%emt 0:00:00]} 7. bxc3 {[%emt 0:00:08]} e5 {[%emt 0:00:00] A50: Queen's Fianchetto Defence (1 d4 Nf6 2 c4 b6)} 8. Be3 {[%emt 0:01:25]} Nd7 {[%emt 0:04:54]} (8... Be7 9. dxe5 Nd7 10. Qa4 c6 11. Rd1 b5 12. Qb3 Qa5 13. f4 O-O-O 14. Nf3 Nc5 15. Bxc5 Bxc5 {0-1 (58) Ju,W (2583)-Li,C (2720) Beijing 2017}) 9. Bc4 {[%emt 0:01:44]} Qe7 $146 {[%emt 0:16:27]} ({Predecessor:} 9... Qh4+ 10. g3 Qh5 11. Qb3 Bd6 12. g4 Qh4+ 13. Bf2 Qf6 14. g5 Qf4 15. h4 {½-½ (23) Provotorov,I (2368)-Moiseenko,V (2528) Voronezh 2017}) 10. Qd2 {[%emt 0:06:09]} g6 {[%emt 0:04:23]} 11. Ne2 {[%emt 0:00:09]} Bg7 {[%emt 0:00:37]} 12. O-O {[%emt 0:01:43]} O-O {[%emt 0:06:50]} 13. Rad1 {[%emt 0:02:21]} Rad8 {[%emt 0:00:13]} 14. Qc2 {[%emt 0:04:53]} Kh8 {[%emt 0:07:04]} 15. Bf2 {[%emt 0:00:39]} exd4 {[%emt 0:09:42]} 16. cxd4 {[%emt 0:00:08]} c5 {[%emt 0:00:05]} 17. dxc5 {[%emt 0:01:29]} Nxc5 {[%emt 0:01:19]} 18. Nf4 {[%emt 0:00:29]} Be5 {[%emt 0:09:09]} 19. Nd5 {[%emt 0:01:04]} Bxd5 {[%emt 0:00:14]} 20. Bxd5 $14 {[%emt 0:00:17]} Rc8 {[%emt 0:04:11]} 21. Qd2 {[%emt 0:10:03]} Na4 {[%emt 0:11:44]} 22. Bb3 {[%emt 0:06:25]} Rfd8 {[%emt 0:03:51]} 23. Qh6 {[%emt 0:00:14]} Nc3 {[%emt 0:02:06]} 24. Rxd8+ {[%emt 0:00:09]} Rxd8 {[%emt 0:00:27]} 25. g3 {[%emt 0:02:22]} Kg8 {[%emt 0:05:07]} 26. Kg2 {[%emt 0:02:15]} Ne2 {[%emt 0:02:03]} 27. Qe3 {[%emt 0:03:59]} Nd4 {[%emt 0:01:10]} 28. Bd5 {[%emt 0:00:11]} Ne6 {[%emt 0:06:29]} 29. Qb3 {[%emt 0:04:58]} Nc7 {[%emt 0:01:12]} 30. Bc4 {[%emt 0:02:13]} b5 {[%emt 0:00:31]} 31. Bd3 {[%emt 0:03:24]} Bd4 {[%emt 0:00:34]} 32. Be1 {[%emt 0:01:51]} a6 {[%emt 0:00:54]} 33. Ba5 {[%emt 0:00:16]} Rd7 {[%emt 0:02:36]} 34. Rc1 {[%emt 0:01:21]} Ne6 {[%emt 0:00:02]} 35. Rc8+ {[%emt 0:00:55]} Kg7 {[%emt 0:00:02]} 36. Bf1 {[%emt 0:00:30]} Qg5 {[%emt 0:01:23]} 37. h4 {[%emt 0:05:31]} Nf4+ {[%emt 0:00:55]} 38. Kh2 {[%emt 0:00:09]} Bg1+ {[%emt 0:00:16]} 39. Kxg1 {[%emt 0:00:07]} Qxg3+ {[%emt 0:00:03]} 40. Kh1 {[%emt 0:00:00]} Qxh4+ {[%emt 0:00:00]} 41. Kg1 {[%emt 0:00:16]} 1/2-1/2

[Event "WYCC 2018 O18"]
[Site "Halkidiki"]
[Date "2018.10.21"]
[Round "3"]
[White "Tsomaia, Nikoloz"]
[Black "Muha, Miljenko"]
[Result "1-0"]
[ECO "B10"]
[WhiteElo "2201"]
[BlackElo "2365"]
[Annotator "ChessBase"]
[PlyCount "119"]
[EventDate "2018.10.20"]
[EventType "swiss"]
[EventCountry "GRE"]
[SourceTitle "playchess.com"]
[Source "ChessBase"]
[SourceQuality "1"]
[TimeControl "40/5400+30:1800+30"]

1. e4 {[%emt 0:00:00]} c6 {[%emt 0:00:00]} 2. d3 {[%emt 0:00:16]} d5 {[%emt 0:00:14]} 3. Nd2 {[%emt 0:00:03]} e5 {[%emt 0:00:28]} 4. Ngf3 {[%emt 0:00:03]} Bd6 {[%emt 0:00:38]} 5. Qe2 {[%emt 0:00:04]} Qe7 {[%emt 0:09:21]} 6. d4 {[%emt 0:01:17]} exd4 {[%emt 0:01:16]} 7. exd5 {[%emt 0:00:14]} Nf6 {[%emt 0:05:46]} 8. Qxe7+ {[%emt 0:20:31]} Kxe7 {[%emt 0:00:23]} 9. dxc6 {[%emt 0:02:46]} Nxc6 {[%emt 0:09:01]} 10. Bb5 {[%emt 0:00:17]} Bc5 {[%emt 0:12:26]} 11. Bxc6 {[%emt 0:20:27]} bxc6 {[%emt 0:00:11]} 12. O-O {[%emt 0:08:47]} Rd8 {[%emt 0:03:19]} 13. Ne5 {[%emt 0:14:43]} Bb7 {[%emt 0:01:34]} 14. Nd3 {[%emt 0:00:41]} Bb6 {[%emt 0:01:47]} 15. b3 {[%emt 0:00:21]} Kf8 {[%emt 0:02:15]} 16. Ba3+ {[%emt 0:01:12]} Kg8 {[%emt 0:00:02]} 17. Be7 {[%emt 0:00:54]} Re8 {[%emt 0:00:59]} 18. Bxf6 {[%emt 0:00:12]} gxf6 {[%emt 0:00:02]} 19. Rfe1 {[%emt 0:00:11]} Rad8 {[%emt 0:14:34]} 20. Nc4 {[%emt 0:03:24]} Bc7 {[%emt 0:01:25]} 21. h3 {[%emt 0:00:25]} Kf8 {[%emt 0:01:04]} 22. Kf1 {[%emt 0:00:07]} Bc8 {[%emt 0:01:08]} 23. Nb4 {[%emt 0:01:39]} Bb7 {[%emt 0:00:50]} 24. Rxe8+ {[%emt 0:01:23]} Kxe8 {[%emt 0:01:22]} 25. Rd1 {[%emt 0:01:09]} a5 {[%emt 0:03:01]} 26. Nd3 {[%emt 0:00:08]} Rd5 {[%emt 0:00:38]} 27. a4 {[%emt 0:00:59]} Bc8 {[%emt 0:02:52]} 28. Nd2 {[%emt 0:01:53]} Ba6 {[%emt 0:01:09]} 29. Ne4 {[%emt 0:01:10]} Ke7 {[%emt 0:01:40]} 30. Re1 {[%emt 0:00:29]} Re5 {[%emt 0:00:20]} 31. Re2 {[%emt 0:02:44]} Re6 {[%emt 0:02:37]} 32. Ke1 {[%emt 0:00:53]} f5 {[%emt 0:00:54]} 33. Nec5 {[%emt 0:00:43]} Rxe2+ {[%emt 0:00:08]} 34. Kxe2 {[%emt 0:00:03]} Bc8 {[%emt 0:00:05]} 35. Ne1 {[%emt 0:02:13]} Kd6 {[%emt 0:01:31]} 36. Ncd3 {[%emt 0:00:07]} c5 {[%emt 0:01:20]} 37. Nb2 {[%emt 0:01:00]} Kd5 {[%emt 0:00:41]} 38. Nc4 {[%emt 0:00:17]} Ba6 {[%emt 0:02:14]} 39. Kd3 {[%emt 0:00:04]} Ke6 {[%emt 0:01:39]} 40. Nf3 {[%emt 0:00:00]} Bb7 {[%emt 0:00:00]} 41. Na3 {[%emt 0:08:31]} Be4+ {[%emt 0:10:34]} 42. Kc4 {[%emt 0:02:10]} Bf4 {[%emt 0:03:04]} 43. Kb5 {[%emt 0:08:58]} Kd5 {[%emt 0:02:05]} 44. Ne1 {[%emt 0:10:28]} Bd2 {[%emt 0:00:37]} 45. Nd3 {[%emt 0:00:04]} Bxg2 {[%emt 0:00:24]} 46. h4 {[%emt 0:01:33]} Ke4 {[%emt 0:13:36]} 47. Nc4 {[%emt 0:02:19]} Bc3 {[%emt 0:00:12]} 48. Nxa5 {[%emt 0:03:15]} Bf3 {[%emt 0:13:20]} 49. Nb7 {[%emt 0:02:14]} Bd1 {[%emt 0:03:08]} 50. Nbxc5+ {[%emt 0:01:01]} Kd5 {[%emt 0:00:32]} 51. a5 {[%emt 0:01:20]} Bxa5 {[%emt 0:00:43]} 52. Kxa5 {[%emt 0:00:05]} Bxc2 {[%emt 0:00:06]} 53. b4 {[%emt 0:02:44]} Kc4 {[%emt 0:02:26]} 54. Nb2+ {[%emt 0:04:21]} Kc3 {[%emt 0:01:04]} 55. b5 {[%emt 0:00:47]} Kxb2 {[%emt 0:00:43]} 56. b6 {[%emt 0:00:05]} Be4 {[%emt 0:01:15]} 57. Nxe4 {[%emt 0:00:07]} fxe4 {[%emt 0:00:02]} 58. b7 {[%emt 0:00:04]} d3 {[%emt 0:00:20]} 59. b8=Q+ {[%emt 0:00:05]} Kc2 {[%emt 0:00:13]} 60. Qf4 {[%emt 0:01:46]} 1-0

[Event "WYCC 2018 O18"]
[Site "Halkidiki"]
[Date "2018.10.21"]
[Round "3"]
[White "Petersson, Baldur Teodor"]
[Black "Agmanov, Zhandos"]
[Result "1/2-1/2"]
[ECO "C00"]
[WhiteElo "2195"]
[BlackElo "2354"]
[Annotator "NA"]
[PlyCount "32"]
[EventDate "2018.10.20"]
[EventType "swiss"]
[EventCountry "GRE"]
[SourceTitle "playchess.com"]
[Source "ChessBase"]
[SourceQuality "1"]
[TimeControl "40/5400+30:1800+30"]

1. e4 {[%emt 0:00:00]} e6 {[%emt 0:00:00]} 2. d3 {[%emt 0:01:28]} d5 {[%emt 0:01:16]} 3. Nd2 {[%emt 0:00:00]} c5 {[%emt 0:00:17]} 4. Ngf3 {[%emt 0:00:10]} Nc6 {[%emt 0:00:19]} 5. g3 {[%emt 0:00:40]} g6 {[%emt 0:00:32]} 6. Bg2 {[%emt 0:00:09]} Bg7 {[%emt 0:00:07]} 7. O-O {[%emt 0:00:27]} Nge7 {[%emt 0:01:02]} 8. Re1 {[%emt 0:00:25]} O-O {[%emt 0:00:13]} 9. e5 {[%emt 0:00:37]} Qc7 {[%emt 0:00:40]} 10. Qe2 {[%emt 0:00:28]} b6 {[%emt 0:01:20]} 11. c3 {[%emt 0:00:53]} a5 {[%emt 0:00:27]} 12. h4 {[%emt 0:07:15]} Ba6 {[%emt 0:01:53]} 13. Nf1 {[%emt 0:11:19]} a4 {[%emt 0:01:10]} 14. Bf4 {[%emt 0:05:05]} b5 $11 {[%emt 0:06:28]} 15. Qd2 {[%emt 0:06:11]} Rfd8 {[%emt 0:03:17]} 16. N1h2 {[%emt 0:03:34]} Kh8 {[%emt 0:38:42]} 1/2-1/2

[Event "WYCC 2018 O18"]
[Site "Halkidiki"]
[Date "2018.10.21"]
[Round "3"]
[White "Rovira Vila, Jaume"]
[Black "Tran, Minh Thang"]
[Result "0-1"]
[ECO "B22"]
[WhiteElo "2156"]
[BlackElo "2341"]
[Annotator "NA"]
[PlyCount "92"]
[EventDate "2018.10.20"]
[EventType "swiss"]
[EventCountry "GRE"]
[SourceTitle "playchess.com"]
[Source "ChessBase"]
[SourceQuality "1"]
[TimeControl "40/5400+30:1800+30"]

1. e4 {[%emt 0:00:00]} c5 {[%emt 0:00:00]} 2. c3 {[%emt 0:00:00]} d5 {[%emt 0:00:12]} 3. exd5 {[%emt 0:00:00]} Qxd5 {[%emt 0:00:14]} 4. d4 {[%emt 0:00:09]} Nf6 {[%emt 0:00:12]} 5. Nf3 {[%emt 0:00:07]} e6 {[%emt 0:00:10]} 6. Na3 {[%emt 0:00:19]} cxd4 {[%emt 0:10:25]} 7. Nb5 {[%emt 0:03:43]} Na6 {[%emt 0:00:28]} 8. Qxd4 {[%emt 0:01:08]} Bc5 {[%emt 0:06:49]} 9. Qxd5 {[%emt 0:01:00]} Nxd5 {[%emt 0:00:19]} 10. Be2 {[%emt 0:01:44] B22: Sicilian: 2 c3} f6 $146 {[%emt 0:02:48]} ({Predecessor:} 10... O-O 11. O-O b6 12. c4 Nf6 13. Ne5 Bb7 14. a3 Be7 15. b4 Rfc8 16. Bb2 Nc7 17. Nd4 Nce8 {0-1 (42) Milliet,S (2354)-Sachdev,T (2423) Lyon 2008}) 11. O-O {[%emt 0:20:05]} e5 {[%emt 0:04:36]} 12. a3 {[%emt 0:08:06]} Nac7 {[%emt 0:11:17]} 13. Nxc7+ {[%emt 0:05:09]} Nxc7 {[%emt 0:00:16]} 14. b4 {[%emt 0:00:04]} Be7 {[%emt 0:03:32]} 15. c4 {[%emt 0:09:59]} g5 {[%emt 0:06:44]} 16. Bb2 {[%emt 0:06:34]} Ne6 {[%emt 0:01:48]} 17. c5 {[%emt 0:01:26]} Bd7 {[%emt 0:05:23]} 18. Bc4 {[%emt 0:13:38]} Nf4 {[%emt 0:02:48]} 19. Bc1 {[%emt 0:12:07]} O-O-O {[%emt 0:10:54]} 20. Bxf4 gxf4 {[%emt 0:00:22]} 21. a4 {[%emt 0:04:44]} Kc7 {[%emt 0:05:28]} 22. Rfc1 {[%emt 0:02:37]} Rhf8 {[%emt 0:14:39]} 23. Be2 {[%emt 0:02:45]} Rg8 {[%emt 0:02:42]} 24. b5 {[%emt 0:01:13]} e4 {[%emt 0:01:56]} 25. Ne1 {[%emt 0:01:00]} Rg5 {[%emt 0:00:27]} 26. Rc4 {[%emt 0:01:37]} Re5 {[%emt 0:02:49]} 27. Rac1 {[%emt 0:01:13]} Be6 {[%emt 0:00:24]} 28. R4c3 {[%emt 0:00:18]} Rd2 {[%emt 0:00:39]} 29. Bc4 {[%emt 0:02:00]} Bg4 {[%emt 0:01:05]} 30. Bg8 {[%emt 0:00:59]} Rg5 {[%emt 0:01:39]} 31. Bb3 {[%emt 0:00:48]} f3 {[%emt 0:01:53]} 32. g3 {[%emt 0:00:32]} Re5 {[%emt 0:00:06]} 33. Nc2 {[%emt 0:00:45]} f5 {[%emt 0:01:30]} 34. b6+ {[%emt 0:00:29]} Kb8 {[%emt 0:01:52]} 35. bxa7+ {[%emt 0:00:21]} Kxa7 {[%emt 0:00:00]} 36. Ne3 {[%emt 0:00:01]} Bg5 {[%emt 0:00:02]} 37. Nxg4 {[%emt 0:01:18]} fxg4 {[%emt 0:00:03]} 38. c6 {[%emt 0:00:01]} bxc6 {[%emt 0:01:53]} 39. Rxc6 {[%emt 0:00:44]} e3 {[%emt 0:00:23]} 40. Rc7+ {[%emt 0:00:00]} Kb6 {[%emt 0:00:00]} 41. a5+ {[%emt 0:30:11]} Kxa5 {[%emt 0:01:00]} 42. Bc4 {[%emt 0:01:01]} e2 {[%emt 0:02:27]} 43. Ra7+ {[%emt 0:00:48]} Kb6 {[%emt 0:00:13]} 44. Ra6+ {[%emt 0:00:13]} Kb7 {[%emt 0:00:18]} 45. Rb1+ {[%emt 0:00:48]} Kc7 $19 {[%emt 0:00:17]} 46. Ra7+ {[%emt 0:00:28]} Kd6 {[%emt 0:00:31]} 0-1